Cogmind - Beta 13 @@@ ROGUE MODE // 2024.06.05 @ 17:09:58 Player: Gabe+Kate4EVR Result: Destroyed by B-86 Titan with Matter Neutralizer Performance ------------- Evolutions (7) 3500 Regions Visited (17) 3400 Robots Destroyed (66) 330 Value Destroyed (2477) 2477 Prototype IDs (11) 220 Alien Tech Used (2) 400 Bonus (1635) 1635 TOTAL SCORE: 11962 Bonus ------- High Alert Combat Kills 135 Entered Garrisons 200 Entered DSFs 1000 Met Zhirov 300 Cogmind --------- Core Integrity 0/1300 Matter 265/300 Energy 79/100 System Corruption 21% Temperature Cool (9) Movement Core (50) Location -3/Research Parts ------- > --- POWER (1) -------- (None) > --- PROPULSION (10) -- (None) > --- UTILITY (8) ------ Enhanced Optical Array Advanced Targeting Computer Improved System Shield > --- WEAPON (2) ------- (None) > --- INVENTORY (5) ---- Maul Peak State ------------ > --- POWER ------------ Light Antimatter Reactor > --- PROPULSION ------- Field Propulsion Drive Impulse Thruster Impulse Thruster Impulse Thruster Impulse Thruster Impulse Thruster Impulse Thruster Cooled Field Propulsion Drive > --- UTILITY ---------- Power Amplifier Improved Cooling System Enhanced Optical Array Enhanced Optical Array Targeting Computer Advanced Targeting Computer Hacking Suite Hacking Suite > --- WEAPON ----------- Compact HERF Cannon > --- INVENTORY -------- Micro Fission Core Light Antimatter Reactor Field Propulsion Drive Impulse Thruster Maul [Rating: 102] Favorites ----------- Power Ion Engine Engine Ion Engine Power Core Enhanced Nuclear Core Reactor Light Antimatter Reactor Propulsion Aluminum Leg Treads Light Treads Leg Aluminum Leg Wheel Armored Wheel Hover Unit Cooled Gravmag System Flight Unit Impulse Thruster Utility Hacking Suite Device Power Amplifier Storage Small Storage Unit Processor Targeting Computer Hackware Hacking Suite Protection Layered Medium Armor Plating Weapon Phase Cannon Energy Gun Medium Laser Energy Cannon Phase Cannon Ballistic Gun Heavy Machine Gun Ballistic Cannon Light Cannon Launcher Mini Grenade Launcher Special Weapon Welding Torch Build | -11 -10 -9 -8 -7 -7 -7 -6 -5 -5 -4 -4 -4 -4 -4 -4 -3 -3 ------- Run | Yrd Mat Mat Mat Fac DSF Gar Fac Fac DSF Fac Was Fac Upp Upp Zhi Pro Res Slots Evolved 14 | . . 2 2 2 . . 2 2 . 2 . . . . . . 2 Power . | . . . . . . . . . . . . . . . . . . Propulsion 8 | . . 1 2 1 . . . 2 . . . . . . . . 2 Utility 6 | . . 1 . 1 . . 2 . . 2 . . . . . . . Weapon . | . . . . . . . . . . . . . . . . . . Parts Attached 198 | 7 12 26 11 4 16 31 33 1 18 1 . 10 3 3 5 . 17 Power 26 | 1 1 4 4 1 1 6 3 . 1 1 . . 1 . . . 2 Engine 11 | 1 1 4 2 . . 2 1 . . . . . . . . . . Core 11 | . . . 2 1 1 4 1 . . . . . . . . . 2 Reactor 4 | . . . . . . . 1 . 1 1 . . 1 . . . . Propulsion 85 | 2 2 8 2 1 12 11 9 . 15 . . 6 2 2 3 . 10 Treads 1 | . . . . . . 1 . . . . . . . . . . . Leg 34 | 2 2 2 . . 8 10 4 . . . . . . . . . 6 Wheel 4 | . . . . . 4 . . . . . . . . . . . . Hover 12 | . . . . 1 . . 5 . . . . . . . 3 . 3 Flight 34 | . . 6 2 . . . . . 15 . . 6 2 2 . . 1 Utility 46 | 1 4 7 1 2 1 7 12 . 2 . . 3 . 1 2 . 3 Device 19 | . 1 3 . 1 1 6 3 . 2 . . . . . 1 . 1 Storage 7 | 1 3 . 1 . . . 1 . . . . . . . . . 1 Processor 11 | . . 3 . 1 . . 3 . . . . 3 . 1 . . . Hackware 4 | . . 1 . . . . 1 . . . . . . . 1 . 1 Protection 5 | . . . . . . 1 4 . . . . . . . . . . Artifact . | . . . . . . . . . . . . . . . . . . Weapon 41 | 3 5 7 4 . 2 7 9 1 . . . 1 . . . . 2 Energy Gun 12 | 2 1 2 3 . 2 . 2 . . . . . . . . . . Energy Cannon 11 | . . 1 . . . 3 5 . . . . 1 . . . . 1 Ballistic Gun 11 | 1 . 3 1 . . 3 1 1 . . . . . . . . 1 Ballistic Cannon 1 | . 1 . . . . . . . . . . . . . . . . Launcher 4 | . 1 1 . . . 1 1 . . . . . . . . . . Special Weapon 2 | . 2 . . . . . . . . . . . . . . . . Impact Weapon . | . . . . . . . . . . . . . . . . . . Slashing Weapon . | . . . . . . . . . . . . . . . . . . Piercing Weapon . | . . . . . . . . . . . . . . . . . . Special Melee Weapon . | . . . . . . . . . . . . . . . . . . Unidentified Prototypes 13 | . . 2 2 1 . . 2 . . . . 1 . . 2 . 3 Corrupted Parts 8 | . . . 1 . . 4 2 . . . . . . . . . 1 System Corruption 38 | . . . 1 . . 27 5 . . . . . . . . . 5 Parts Lost 81 | . . 4 2 . 7 8 18 . 9 . . 2 4 3 . 6 18 Power 6 | . . . 1 . . 1 1 . 1 . . . . . . 1 1 Propulsion 47 | . . 2 1 . 6 4 8 . 6 . . 1 4 3 . 4 8 Utility 17 | . . 1 . . 1 1 4 . 1 . . 1 . . . 1 7 Weapon 11 | . . 1 . . . 2 5 . 1 . . . . . . . 2 Highest Loss Streak 17 | . . 3 2 . 5 4 9 . 9 . . 1 4 3 . 6 17 To Critical Strikes 2 | . . . . . . 1 1 . . . . . . . . . . Average Slot Usage (%) 85 | . 92 91 74 64 67 93 92 44 66 73 73 83 78 87 72 69 46 Engine 4 | . 14 11 3 . . 2 2 . . . . . . . . . . Core 1 | . . . 3 7 5 4 . 5 1 . . . . . . . 2 Reactor 1 | . . . . . . . 2 . 3 5 5 5 5 5 5 3 . Leg 17 | . 28 12 . . 6 24 30 . . . . . . . . . 3 Wheel 2 | . . . . . 12 13 . . . . . . . . . . . Hover 2 | . . . . 5 1 . 4 11 4 . . . . . 5 15 9 Flight 10 | . . 15 30 23 12 . . . 27 42 42 42 31 34 21 12 2 Device 10 | . 7 11 9 7 3 9 16 . 7 10 10 9 5 5 6 10 3 Storage 6 | . 14 7 7 7 7 7 5 5 . . . . . . . . 1 Processor 5 | . . 8 1 4 7 . 1 5 5 5 5 11 21 25 20 15 12 Hackware 6 | . . 1 9 7 7 7 6 11 11 10 10 10 10 10 11 10 7 Protection 1 | . . . . . . 3 5 . . . . . . . . . . Energy Gun 3 | . 12 6 4 . 1 3 2 . . . . . . . . . . Energy Cannon 3 | . . 2 . . . 5 5 . . . . 4 5 5 . . . Ballistic Gun 3 | . 2 10 5 . . 4 2 2 1 . . . . . . . . Ballistic Cannon 1 | . 10 . . . . . . . . . . . . . . . . Naked Turns . | . . . . . . . . . . . . . . . . . . Heaviest Build 40 | 14 31 33 19 14 22 40 40 16 18 15 15 22 21 21 21 17 30 Greatest Support 83 | 20 20 20 19 14 48 79 83 26 56 56 42 56 59 52 28 48 69 Greatest Overweight (x) 10 | 1 1 10 1 . 1 1 . . 1 . . . . . . . 3 Average Overweight (x) . | . . . . . . . . . . . . . . . . . . Largest Inventory Capacity 15 | 8 15 15 8 8 8 8 8 8 8 5 5 5 5 5 5 5 10 Average Capacity 8 | 7 10 11 7 8 8 8 7 8 5 5 5 5 5 5 5 5 7 Most Carried 15 | 4 13 15 8 8 8 8 8 8 7 5 5 5 5 5 5 5 5 Average Carried 7 | 2 9 11 7 7 7 7 7 7 4 4 5 5 4 4 5 5 2 Final Capacity 15 | 8 15 5 8 8 8 8 8 8 5 5 5 5 5 5 5 5 5 Final Carried 13 | 4 13 5 8 8 7 8 8 7 5 5 5 5 3 5 5 5 1 Class Distribution -------------------- 45% | Scavenger-Mutant 24% | Mutant 19% | Hacker-Sprinter 5% | Hacker-Mutant 4% | Sprinter Dominant Class ---------------- Mutant | -10/Materials Scavenger-Mutant | -9/Materials Sprinter | -8/Materials Sprinter | -7/Factory Sprinter | -7/DSF Scavenger-Mutant | -7/Garrison Scavenger-Mutant | -6/Factory Hacker-Mutant | -5/Factory Hacker-Mutant | -5/DSF Hacker-Sprinter | -4/Factory Hacker-Sprinter | -4/Waste Hacker-Sprinter | -4/Factory Hacker-Sprinter | -4/Upper Caves Hacker-Sprinter | -4/Upper Caves Hacker-Sprinter | -4/Zhirov Hacker-Sprinter | -3/Proximity Caves Mutant | -3/Research Resources | -11 -10 -9 -8 -7 -7 -7 -6 -5 -5 -4 -4 -4 -4 -4 -4 -3 -3 ----------- Run | Yrd Mat Mat Mat Fac DSF Gar Fac Fac DSF Fac Was Fac Upp Upp Zhi Pro Res Matter Collected 2538 | 223 220 434 36 . 4 809 308 25 8 . . . 289 76 . . 106 Remotely . | . . . . . . . . . . . . . . . . . . Salvage Created 2858 | . 188 601 27 . . 1030 674 25 . . . . 156 . . . 157 Parts 118 | . 8 31 2 . . 43 33 . . . . . . . . . 1 Haulers Intercepted 1 | . . 1 . . . . . . . . . . . . . . . Recyclers Shooed 3 | . 1 2 . . . . . . . . . . . . . . . Parts Field Recycled . | . . . . . . . . . . . . . . . . . . Retrieved Matter . | . . . . . . . . . . . . . . . . . . Parts Self-Destructed 5 | . . . . . . . . . . . . . . 5 . . . Prevented . | . . . . . . . . . . . . . . . . . . Kills | -11 -10 -9 -8 -7 -7 -7 -6 -5 -5 -4 -4 -4 -4 -4 -4 -3 -3 ------- Run | Yrd Mat Mat Mat Fac DSF Gar Fac Fac DSF Fac Was Fac Upp Upp Zhi Pro Res Combat Hostiles Destroyed 50 | . 5 13 . . . 22 10 . . . . . . . . . . Guns 19 | . . 4 . . . 13 2 . . . . . . . . . . Cannons 16 | . 5 1 . . . 5 5 . . . . . . . . . . AOE 14 | . . 8 . . . 3 3 . . . . . . . . . . Classes Destroyed 14 | . 2 6 . . . 2 3 1 . . . . . . . . . Worker 1 | . . . . . . . . 1 . . . . . . . . . Builder 2 | . . 1 . . . . 1 . . . . . . . . . . Hauler 1 | . . 1 . . . . . . . . . . . . . . . Recycler 4 | . . 2 . . . . 1 . . . . . . . . . 1 Mechanic 2 | . . . . . . . 2 . . . . . . . . . . Operator 2 | . . 2 . . . . . . . . . . . . . . . Watcher 4 | . 1 2 1 . . . . . . . . . . . . . . Swarmer 14 | . . 6 . . . 4 4 . . . . . . . . . . Grunt 23 | . 5 5 . . . 13 . . . . . . . . . . . Duelist 1 | . . . . . . 1 . . . . . . . . . . . Sentry 6 | . . 2 . . . 3 1 . . . . . . . . . . Specialist 1 | . . . . . . . 1 . . . . . . . . . . Hunter 3 | . . . . . . 1 2 . . . . . . . . . . Programmer 2 | . . . . . . . 2 . . . . . . . . . . Packrat 2 | . . . . . . . . . . . . . 2 . . . . Best Kill Streak 6 | . 3 6 1 . . 5 4 1 . . . . . . . . 1 Combat Bots Only 6 | . 3 6 . . . 5 4 . . . . . . . . . . Max Kills in Single Turn 4 | . 1 4 1 . . 2 4 1 . . . . 1 . . . 1 Gunslinging 1 | . . . . . . 1 . . . . . . . . . . . Exploded 3 | . . 3 . . . 2 3 . . . . . . . . . . Melee . | . . . . . . . . . . . . . . . . . . Uniques/NPCs Destroyed . | . . . . . . . . . . . . . . . . . . Combat | -11 -10 -9 -8 -7 -7 -7 -6 -5 -5 -4 -4 -4 -4 -4 -4 -3 -3 -------- Run | Yrd Mat Mat Mat Fac DSF Gar Fac Fac DSF Fac Was Fac Upp Upp Zhi Pro Res Hostile Shots Fired 1029 | . 29 96 39 . 49 216 188 . 14 . . 14 34 8 . 67 275 Missed 396 | . 13 25 16 . 11 77 61 . 5 . . 5 18 3 . 30 132 Damage Taken 12338 | . 193 798 351 . 1056 1692 2937 . 617 . . 211 318 113 . 825 3227 Core 3321 | . 11 235 114 . 261 195 561 . 218 . . 24 111 22 . 325 1244 Absorbed by Shields 52 | . . . . . 52 . . . . . . . . . . . . Regen/Repaired (Parts) 222 | . . . . . . . 222 . . . . . . . . . . Core Remaining (%) 64 | 100 95 41 79 . . 34 34 . 78 . . . . . . 58 . Volleys Fired 189 | . 32 43 3 . . 61 37 1 . . . 3 4 3 . . 2 Largest 2 | . 2 2 2 . . 2 2 1 . . . 1 1 1 . . 2 Hottest 170 | . 85 108 65 . . 170 170 28 . . . 94 94 94 . . 124 Shots Fired 354 | . 61 85 6 . . 116 71 1 . . . 3 4 3 . . 4 Gun 225 | . 24 68 6 . . 96 28 1 . . . . . . . . 2 Cannon 109 | . 27 10 . . . 18 42 . . . . 3 4 3 . . 2 Launcher 10 | . . 7 . . . 2 1 . . . . . . . . . . Special 10 | . 10 . . . . . . . . . . . . . . . . Kinetic 140 | . 27 43 3 . . 48 16 1 . . . . . . . . 2 Thermal 129 | . 34 35 . . . 18 42 . . . . . . . . . . Explosive 10 | . . 7 . . . 2 1 . . . . . . . . . . Electromagnetic 75 | . . . 3 . . 48 12 . . . . 3 4 3 . . 2 Robot Hit Streak 14 | . 13 12 2 . . 14 7 2 . . . 3 4 1 . . 4 Robot Miss Streak 8 | . 6 3 2 . . 4 8 . . . . 2 . 1 . . . Penetration Max 1 | . . . . . . 1 . . . . . . . . . . . Secondary Targets 2 | . . . . . . 2 . . . . . . . . . . . Max Gunslinging Chain 1 | . . . . . . 1 . . . . . . . . . . . Shots Hit Robots 209 | . 26 51 3 . . 74 44 1 . . . 1 4 1 . . 4 Core Hits 118 | . 9 35 1 . . 39 29 1 . . . . 1 . . . 3 Critical Kills 1 | . . . . . . . 1 . . . . . . . . . . Critical Parts Destroyed 1 | . . . . . . 1 . . . . . . . . . . . Critical Strikes 7 | . 2 1 . . . 2 1 . . . . . 1 . . . . Burn 2 | . 1 1 . . . . . . . . . . . . . . . Meltdown 1 | . . . . . . . 1 . . . . . . . . . . Destroy 1 | . . . . . . 1 . . . . . . . . . . . Blast 1 | . 1 . . . . . . . . . . . . . . . . Corrupt 2 | . . . . . . 1 . . . . . . 1 . . . . Melee Attacks . | . . . . . . . . . . . . . . . . . . Impact . | . . . . . . . . . . . . . . . . . . Slashing . | . . . . . . . . . . . . . . . . . . Piercing . | . . . . . . . . . . . . . . . . . . Sneak Attacks . | . . . . . . . . . . . . . . . . . . Combat Hostiles . | . . . . . . . . . . . . . . . . . . Follow-up Attacks . | . . . . . . . . . . . . . . . . . . Damage Inflicted 5936 | . 440 1292 53 . . 2249 1468 18 . . . 52 192 37 . . 135 Guns 2596 | . 114 583 53 . . 1413 370 18 . . . . . . . . 45 Cannons 2130 | . 326 185 . . . 368 882 . . . . 52 192 37 . . 88 Explosions 1194 | . . 524 . . . 454 216 . . . . . . . . . . Melee . | . . . . . . . . . . . . . . . . . . Ramming 16 | . . . . . . 14 . . . . . . . . . . 2 Kinetic 1938 | . 326 446 17 . . 809 277 18 . . . . . . . . 45 Thermal 1686 | . 114 322 . . . 368 882 . . . . . . . . . . Explosive 1194 | . . 524 . . . 454 216 . . . . . . . . . . Electromagnetic 1102 | . . . 36 . . 604 93 . . . . 52 192 37 . . 88 Impact . | . . . . . . . . . . . . . . . . . . Slashing . | . . . . . . . . . . . . . . . . . . Piercing . | . . . . . . . . . . . . . . . . . . Highest Corruption 27 | . . . 1 . . 27 5 . . . 10 10 10 10 10 10 21 Average Corruption 8 | . . . 1 . . 10 4 . . . 10 10 10 10 10 10 8 Corruption Purged . | . . . . . . . . . . . . . . . . . . Corruption Blocked . | . . . . . . . . . . . . . . . . . . Effects 47 | . . . 1 . . 9 8 . . . 1 4 5 8 3 1 7 Message Errors 7 | . . . . . . 2 1 . . . . 3 1 . . . . Matter Fused 10 | . . . . . . 2 3 . . . 1 . . 2 1 . 1 Heat Flow Errors 3 | . . . . . . . . . . . . . . 3 . . . Energy Discharges 7 | . . . . . . 2 . . . . . . 1 2 . . 2 Parts Rejected 3 | . . . 1 . . . . . . . . . . 1 . . 1 Parts Fused 2 | . . . . . . . 1 . . . . . 1 . . . . Data Loss (minor) 5 | . . . . . . 1 1 . . . . . . . 2 . 1 Data Loss (major) 4 | . . . . . . 2 1 . . . . . . . . . 1 Alerts 1 | . . . . . . . 1 . . . . . . . . . . Misdirections 5 | . . . . . . . . . . . . 1 2 . . 1 1 Overload Shots . | . . . . . . . . . . . . . . . . . . Overflow Damage 163 | . 10 31 . . . 49 3 . . . . 2 52 . . . 16 Projectiles 107 | . 10 12 . . . 13 2 . . . . 2 52 . . . 16 Explosions 56 | . . 19 . . . 36 1 . . . . . . . . . . Melee . | . . . . . . . . . . . . . . . . . . Knockbacks 3 | . 3 . . . . . . . . . . . . . . . . Impact . | . . . . . . . . . . . . . . . . . . Kinetic 3 | . 3 . . . . . . . . . . . . . . . . Secondary . | . . . . . . . . . . . . . . . . . . Self-Inflicted Damage 417 | . . . . . . 85 332 . . . . . . . . . . Shots 7 | . . . . . . 2 5 . . . . . . . . . . Rammed 2 | . . . . . . 2 . . . . . . . . . . . Targets Rammed 4 | . . . . . . 2 . . . . . . . . . . 2 Kicked 2 | . . . . . . . . . . . . . . . . . 2 Crushed . | . . . . . . . . . . . . . . . . . . Highest Temperature 394 | . 394 84 26 . . 189 99 . . 3 . 14 49 255 . . 8 Average Temperature 83 | . 162 26 12 . . 45 37 . . 3 . 5 17 94 . . 6 Received Heat Transfer 1560 | . 108 267 171 . 87 630 90 . 27 . . 27 9 9 . 63 72 Effects 3 | . 2 . . . . . . . . . . . . 1 . . . Energy Bleed 2 | . 1 . . . . . . . . . . . . 1 . . . Damage (minor) 1 | . 1 . . . . . . . . . . . . . . . . Siege Activations . | . . . . . . . . . . . . . . . . . . Robots Corrupted 1 | . . . . . . 1 . . . . . . . . . . . Combat Hostiles 1 | . . . . . . 1 . . . . . . . . . . . Parts Fried 6 | . . . . . . 2 . . . . . . . . . . 4 Impact Corruptions . | . . . . . . . . . . . . . . . . . . Robots Melted 1 | . . . . . . . 1 . . . . . . . . . . Combat Hostiles . | . . . . . . . . . . . . . . . . . . Parts Melted 3 | . . 1 . . . . 2 . . . . . . . . . . Heat Transferred 2647 | . 407 779 . . . 425 1036 . . . . . . . . . . Parts Sabotaged . | . . . . . . . . . . . . . . . . . . Parts Stolen . | . . . . . . . . . . . . . . . . . . Parts Stripped . | . . . . . . . . . . . . . . . . . . Power Chain Reactions . | . . . . . . . . . . . . . . . . . . Alert | -11 -10 -9 -8 -7 -7 -7 -6 -5 -5 -4 -4 -4 -4 -4 -4 -3 -3 ------- Run | Yrd Mat Mat Mat Fac DSF Gar Fac Fac DSF Fac Was Fac Upp Upp Zhi Pro Res Peak Influence 651 | . 143 389 206 92 64 651 574 110 77 15 5 191 . . . . 121 Initial 341 | . . . 161 77 64 18 341 105 77 . 5 3 . . . . 36 Average 228 | . 33 263 148 77 35 395 366 106 20 . 5 84 . . . . 52 Maximum Alert Level 2 | . . 1 1 . . 2 2 . . . . . . . . . . Low Security (%) 47 | 100 100 28 99 100 100 20 . 100 100 100 100 100 . . . . 100 Level 1 35 | . . 71 . . . 20 79 . . . . . . . . . . Level 2 16 | . . . . . . 59 20 . . . . . . . . . . Level 3 . | . . . . . . . . . . . . . . . . . . Level 4 . | . . . . . . . . . . . . . . . . . . Level 5 . | . . . . . . . . . . . . . . . . . . High Security . | . . . . . . . . . . . . . . . . . . Max Security . | . . . . . . . . . . . . . . . . . . Squads Dispatched 14 | . 1 2 . 1 . . 6 . 1 1 . 1 . . . . 1 Investigation 2 | . 1 . . . . . 1 . . . . . . . . . . Extermination 3 | . . . . . . . 2 . . 1 . . . . . . . Reinforcement 9 | . . 2 . 1 . . 3 . 1 . . 1 . . . . 1 Assault . | . . . . . . . . . . . . . . . . . . Garrison . | . . . . . . . . . . . . . . . . . . Intercept . | . . . . . . . . . . . . . . . . . . Searches Triggered . | . . . . . . . . . . . . . . . . . . Construction Impeded . | . . . . . . . . . . . . . . . . . . Haulers Reinforced . | . . . . . . . . . . . . . . . . . . Active Scanning Responses . | . . . . . . . . . . . . . . . . . . Cargo Convoy Interrupts . | . . . . . . . . . . . . . . . . . . Stealth | -11 -10 -9 -8 -7 -7 -7 -6 -5 -5 -4 -4 -4 -4 -4 -4 -3 -3 --------- Run | Yrd Mat Mat Mat Fac DSF Gar Fac Fac DSF Fac Was Fac Upp Upp Zhi Pro Res Distress Signals 7 | . . 1 1 . . 1 1 . . 1 . 1 . . . . 1 Communications Jammed . | . . . . . . . . . . . . . . . . . . Distress Signals . | . . . . . . . . . . . . . . . . . . Times Spotted 180 | . 8 27 19 1 3 27 21 . 3 1 4 9 15 10 . 19 13 Peak Tracking Total 15 | . 3 7 11 1 2 7 10 . 4 3 4 7 13 11 . 15 8 Tactical Retreats 24 | . . 3 3 . 2 5 . . . . . 1 6 . . 3 1 Traps | -11 -10 -9 -8 -7 -7 -7 -6 -5 -5 -4 -4 -4 -4 -4 -4 -3 -3 ------- Run | Yrd Mat Mat Mat Fac DSF Gar Fac Fac DSF Fac Was Fac Upp Upp Zhi Pro Res Traps Triggered 9 | . 1 . . . 2 1 1 . 1 2 . . . . . . 1 Indirectly . | . . . . . . . . . . . . . . . . . . Trap Hack Attempts . | . . . . . . . . . . . . . . . . . . Triggered . | . . . . . . . . . . . . . . . . . . Disarmed . | . . . . . . . . . . . . . . . . . . Reprogrammed . | . . . . . . . . . . . . . . . . . . Reused . | . . . . . . . . . . . . . . . . . . Traps Extracted . | . . . . . . . . . . . . . . . . . . Installed . | . . . . . . . . . . . . . . . . . . Triggered 1 | . . . . . . . . . . . . . . 1 . . . Most Traps Carried 1 | . . . . . . . . . . . . . . 1 . . . Machines | -11 -10 -9 -8 -7 -7 -7 -6 -5 -5 -4 -4 -4 -4 -4 -4 -3 -3 ---------- Run | Yrd Mat Mat Mat Fac DSF Gar Fac Fac DSF Fac Was Fac Upp Upp Zhi Pro Res Machines Disabled 11 | . . 3 . . . 1 7 . . . . . . . . . . Max in Single Turn 5 | . . 1 . . . 1 5 . . . . . . . . . . Garrison Relay 1 | . . . . . . 1 . . . . . . . . . . . Machines Repaired . | . . . . . . . . . . . . . . . . . . Machines Dismantled . | . . . . . . . . . . . . . . . . . . Machines Sabotaged . | . . . . . . . . . . . . . . . . . . Overloaded Fab Kills . | . . . . . . . . . . . . . . . . . . Hacking | -11 -10 -9 -8 -7 -7 -7 -6 -5 -5 -4 -4 -4 -4 -4 -4 -3 -3 --------- Run | Yrd Mat Mat Mat Fac DSF Gar Fac Fac DSF Fac Was Fac Upp Upp Zhi Pro Res Machines Accessed 21 | . 1 2 1 1 . 1 6 1 . 2 . 2 . . 3 . 1 Terminals 9 | . . 1 1 1 . 1 2 1 . . . 1 . . . . 1 Fabricators 2 | . . . . . . . 1 . . 1 . . . . . . . Repair Stations 3 | . . . . . . . 3 . . . . . . . . . . Recycling Units 4 | . 1 1 . . . . . . . 1 . 1 . . . . . Scanalyzers . | . . . . . . . . . . . . . . . . . . Garrison Access . | . . . . . . . . . . . . . . . . . . Total Hacks 49 | . 2 2 4 1 . 2 13 2 . 2 . 2 . . 16 . 3 Successful 35 | . 1 2 2 1 . 1 6 1 . 2 . 2 . . 16 . 1 Failed 14 | . 1 . 2 . . 1 7 1 . . . . . . . . 2 Catastrophic 2 | . . . 1 . . . 1 . . . . . . . . . . Database Lockouts . | . . . . . . . . . . . . . . . . . . Manual 5 | . . . 4 . . . 1 . . . . . . . . . . Terminals 19 | . . 1 4 1 . 2 5 2 . . . 1 . . . . 3 Fabricators 2 | . . . . . . . 1 . . 1 . . . . . . . Repair Stations 7 | . . . . . . . 7 . . . . . . . . . . Recycling Units 5 | . 2 1 . . . . . . . 1 . 1 . . . . . Scanalyzers . | . . . . . . . . . . . . . . . . . . Garrison Access . | . . . . . . . . . . . . . . . . . . Terminal Hacks 25 | . . 1 2 1 . 1 1 1 . . . 1 . . 16 . 1 Record 16 | . . . . . . . . . . . . . . . 16 . . Open DSF 5 | . . . . 1 . . 1 1 . . . 1 . . . . 1 Level Access Points 1 | . . 1 . . . . . . . . . . . . . . . Unreport Threat 2 | . . . 2 . . . . . . . . . . . . . . Security Stations 1 | . . . . . . 1 . . . . . . . . . . . Fabricator Hacks 2 | . . . . . . . 1 . . 1 . . . . . . . Network Status 1 | . . . . . . . . . . 1 . . . . . . . Build 1 | . . . . . . . 1 . . . . . . . . . . Repair Station Hacks 4 | . . . . . . . 4 . . . . . . . . . . Scan Component 2 | . . . . . . . 2 . . . . . . . . . . Repair 2 | . . . . . . . 2 . . . . . . . . . . Recycling Unit Hacks 4 | . 1 1 . . . . . . . 1 . 1 . . . . . Retrieve Components 4 | . 1 1 . . . . . . . 1 . 1 . . . . . Scanalyzer . | . . . . . . . . . . . . . . . . . . Garrison Access Hacks . | . . . . . . . . . . . . . . . . . . Unauthorized Hacks . | . . . . . . . . . . . . . . . . . . Terminals . | . . . . . . . . . . . . . . . . . . Fabricators . | . . . . . . . . . . . . . . . . . . Repair Stations . | . . . . . . . . . . . . . . . . . . Recycling Units . | . . . . . . . . . . . . . . . . . . Scanalyzers . | . . . . . . . . . . . . . . . . . . Garrison Access . | . . . . . . . . . . . . . . . . . . Data Cores Recovered . | . . . . . . . . . . . . . . . . . . Used . | . . . . . . . . . . . . . . . . . . Hacking Detections 10 | . 1 1 1 . . 1 4 . . 2 . . . . . . . Full Trace Events 1 | . . . . . . . 1 . . . . . . . . . . Feedback Events . | . . . . . . . . . . . . . . . . . . Feedback Blocked . | . . . . . . . . . . . . . . . . . . Robot Schematics Acquired . | . . . . . . . . . . . . . . . . . . Robots Built . | . . . . . . . . . . . . . . . . . . Authchips . | . . . . . . . . . . . . . . . . . . Time . | . . . . . . . . . . . . . . . . . . Total Robot Build Rating . | . . . . . . . . . . . . . . . . . . Part Schematics Acquired . | . . . . . . . . . . . . . . . . . . Parts Built 2 | . . . . . . . 2 . . . . . . . . . . Authchips . | . . . . . . . . . . . . . . . . . . Time 64 | . . . . . . . 64 . . . . . . . . . . Total Part Build Rating 16 | . . . . . . . 16 . . . . . . . . . . Parts Repaired 2 | . . . . . . . 2 . . . . . . . . . . Time 76 | . . . . . . . 76 . . . . . . . . . . Parts Recycled . | . . . . . . . . . . . . . . . . . . Recycled Matter . | . . . . . . . . . . . . . . . . . . Retrieved Matter . | . . . . . . . . . . . . . . . . . . Retrieved Components 5 | . 1 2 . . . . . . . 1 . 1 . . . . . Parts Scanalyzed . | . . . . . . . . . . . . . . . . . . Part Schematics Acquired . | . . . . . . . . . . . . . . . . . . Parts Damaged . | . . . . . . . . . . . . . . . . . . Bothacking | -11 -10 -9 -8 -7 -7 -7 -6 -5 -5 -4 -4 -4 -4 -4 -4 -3 -3 ------------ Run | Yrd Mat Mat Mat Fac DSF Gar Fac Fac DSF Fac Was Fac Upp Upp Zhi Pro Res Used RIF Installer . | . . . . . . . . . . . . . . . . . . Robots Hacked . | . . . . . . . . . . . . . . . . . . Non-combat . | . . . . . . . . . . . . . . . . . . Combat . | . . . . . . . . . . . . . . . . . . Robot Hacks Applied . | . . . . . . . . . . . . . . . . . . Relay Couplers Released 3 | . . . . . . 3 . . . . . . . . . . . Machine Destruction 3 | . . . . . . 3 . . . . . . . . . . . Fabnet Peak Effective % . | . . . . . . . . . . . . . . . . . . Robots Rewired 1 | . . . . . . . . 1 . . . . . . . . . Allies Hacked . | . . . . . . . . . . . . . . . . . . Hacks Repelled . | . . . . . . . . . . . . . . . . . . Allies | -11 -10 -9 -8 -7 -7 -7 -6 -5 -5 -4 -4 -4 -4 -4 -4 -3 -3 -------- Run | Yrd Mat Mat Mat Fac DSF Gar Fac Fac DSF Fac Was Fac Upp Upp Zhi Pro Res Total Allies 1 | . . . . . . . . 1 . . . . . . . . . Largest Group 1 | . . . . . . . . 1 1 . . . . . . . . Highest-Rated Group 29 | . . . . . . . . 29 29 . . . . . . . . Highest-Rated Ally 29 | . . . . . . . . 29 29 . . . . . . . . Total Orders . | . . . . . . . . . . . . . . . . . . Ally Attacks 5 | . . . . . . . . . 5 . . . . . . . . Total Damage 75 | . . . . . . . . . 75 . . . . . . . . Kills . | . . . . . . . . . . . . . . . . . . Allies Corrupted . | . . . . . . . . . . . . . . . . . . Allies Melted . | . . . . . . . . . . . . . . . . . . Intel | -11 -10 -9 -8 -7 -7 -7 -6 -5 -5 -4 -4 -4 -4 -4 -4 -3 -3 ------- Run | Yrd Mat Mat Mat Fac DSF Gar Fac Fac DSF Fac Was Fac Upp Upp Zhi Pro Res Robot Analysis Total . | . . . . . . . . . . . . . . . . . . Derelict Logs Recovered 2 | . . . . . . . . . . . . . 1 1 . . . Drone Launches . | . . . . . . . . . . . . . . . . . . Drone Recoveries . | . . . . . . . . . . . . . . . . . . Exploration | -11 -10 -9 -8 -7 -7 -7 -6 -5 -5 -4 -4 -4 -4 -4 -4 -3 -3 ------------- Run | Yrd Mat Mat Mat Fac DSF Gar Fac Fac DSF Fac Was Fac Upp Upp Zhi Pro Res Turns Passed 5247 | 73 666 658 143 54 131 893 1284 19 64 275 26 156 162 204 79 62 298 Spaces Moved 5399 | 51 342 509 292 142 149 513 804 37 105 160 103 400 438 514 201 172 467 Core 32 | 3 . 2 . . . . . . . . . . . . . . 27 Treads 20 | . . . . . . 20 . . . . . . . . . . . Legs 1602 | 48 342 156 . . 14 278 727 . . . . . . . . . 37 Wheels 264 | . . . . . 49 215 . . . . . . . . . . . Hover 571 | . . . . . . . 77 37 15 . . . . . . 45 397 Flight 2910 | . . 351 292 142 86 . . . 90 160 103 400 438 514 201 127 6 Fastest Speed 16 | 50 120 34 29 32 32 90 30 38 19 20 25 19 16 20 32 30 40 Average Speed 66 | 116 154 87 31 32 64 122 112 38 28 23 25 23 26 22 32 34 53 Slowest Speed 550 | 120 190 550 105 32 130 240 122 38 125 25 25 28 31 32 32 50 200 Overloaded Moves 665 | . . . . . . . 77 37 14 . . . 286 147 . 33 71 Propulsion Burnouts . | . . . . . . . . . . . . . . . . . . Robots Hopped 17 | . . 3 3 . . . . . . . . 6 3 2 . . . Cave-ins Triggered . | . . . . . . . . . . . . . . . . . . Teleports 1 | . . . . . . . . . . . . . . . . . 1 Exploration Rate (%) 38 | 4 33 37 40 4 87 37 23 1 89 4 76 9 65 59 63 43 17 Regions Visited 17 Branch Regions 4 Pre-discovered Areas . | . . . . . . . . . . . . . . . . . . Known Exits Taken 4 | . . 1 . 1 . . . 1 . . . . . . . 1 . Unknown Exits Taken 8 | 1 1 . 1 . . . 1 . . . . 1 1 1 1 . . Scrap Searched 5 | . . . . . . . . . . . . . 2 3 . . . Spaces Dug . | . . . . . . . . . . . . . . . . . . Terrain Destroyed 187 | . . 37 . . . 41 109 . . . . . . . . . . Melee . | . . . . . . . . . . . . . . . . . . Projectile 12 | . . . . . . . 12 . . . . . . . . . . AOE 175 | . . 37 . . . 41 97 . . . . . . . . . . Terrain Rammed . | . . . . . . . . . . . . . . . . . . Walls Destroyed . | . . . . . . . . . . . . . . . . . . Machines Disabled . | . . . . . . . . . . . . . . . . . . Actions | -11 -10 -9 -8 -7 -7 -7 -6 -5 -5 -4 -4 -4 -4 -4 -4 -3 -3 --------- Run | Yrd Mat Mat Mat Fac DSF Gar Fac Fac DSF Fac Was Fac Upp Upp Zhi Pro Res Total 6653 | 61 421 636 336 152 185 672 1106 40 134 397 102 451 474 593 214 174 505 Wait 678 | . 6 28 12 1 . 26 211 . . 232 . 36 33 74 . 3 16 Move 5349 | 50 341 502 285 141 148 512 803 36 104 160 102 387 431 509 200 171 467 Hop 17 | . . 3 3 . . . . . . . . 6 3 2 . . . Pick Up 73 | 4 16 11 7 2 3 11 9 . 4 1 . 2 . 2 1 . . Fast Attach 122 | 6 2 15 9 3 13 12 18 . 12 . . 9 . 3 6 . 14 Attach 29 | . 2 5 1 1 2 4 4 1 3 . . . 2 . . . 4 Detach 16 | . 2 3 3 1 . 4 . . . . . . . . 3 . . Swap 50 | 1 8 6 1 . 1 15 12 . 3 1 . 1 1 . . . . Drop 105 | . 12 20 12 3 7 25 12 . 4 1 . 7 . . 2 . . Fire 189 | . 32 43 3 . . 61 37 1 . . . 3 4 3 . . 2 Melee . | . . . . . . . . . . . . . . . . . . Ram 2 | . . . . . . 2 . . . . . . . . . . . Kick 2 | . . . . . . . . . . . . . . . . . 2 Crush . | . . . . . . . . . . . . . . . . . . Escape Stasis 17 | . . . . . 11 . . . 4 2 . . . . . . . Rewire 4 | . . . . . . . . 2 . . . . . . 2 . . Trap . | . . . . . . . . . . . . . . . . . . Miscellaneous . | . . . . . . . . . . . . . . . . . . Route ------- -11/Scrapyard -10/Materials -9/Materials (discovered 3 exits: *Mat x3) -8/Materials -7/Factory (discovered 2 exits: *Fac / DSF) -7/DSF -7/Garrison -6/Factory -5/Factory (discovered 2 exits: *Fac / DSF) -5/DSF -4/Factory -4/Waste -4/Factory -4/Upper Caves -4/Upper Caves -4/Zhirov -3/Proximity Caves -3/Research History --------- Turn | Location | Event 10 | -11/Scrapyard | Discovered new exit (range 15) 74 | -11/Scrapyard | Entered Materials 309 | -10/Materials | Build established: Mutant 463 | -10/Materials | Discovered new exit (range 15) 740 | -10/Materials | Entered another Materials area 740 | -9/Materials | Evolved 2 slots: Propulsion x1, Utility x1 798 | -9/Materials | Build established: Scavenger-Mutant 1011 | -9/Materials | Lost 3 parts (1n1u1w) 1255 | -9/Materials | Discovered new exit (range 9) 1262 | -9/Materials | Core integrity fell below 50% 1360 | -9/Materials | Identified exit to Materials 1398 | -9/Materials | Entered another Materials area 1398 | -8/Materials | Evolved 2 slots: Propulsion x2 1526 | -8/Materials | Discovered new exit (range 12) 1541 | -8/Materials | Entered Factory 1541 | -7/Factory | Evolved 2 slots: Propulsion x1, Utility x1 1559 | -7/Factory | Discovered new exit (range 16) 1595 | -7/Factory | Identified exit to DSF 1595 | -7/Factory | Entered DSF 1624 | -7/DSF | Additional patrols routed to DSF 1703 | -7/DSF | Discovered new exit (range 15) 1710 | -7/DSF | Lost 5 parts (4n1u) 1726 | -7/DSF | Entered Garrison 1838 | -7/Garrison | Triggered checkpoint 1897 | -7/Garrison | Learned Factory security intel 1906 | -7/Garrison | Garrison Relay disabled 1916 | -7/Garrison | Build established: Mutant 2097 | -7/Garrison | Core integrity fell below 50% 2159 | -7/Garrison | Lost 4 parts (1p1n2w) 2457 | -7/Garrison | System corruption reached 10% 2483 | -7/Garrison | Build established: Scavenger-Mutant 2606 | -7/Garrison | Discovered new exit (range 12) 2619 | -7/Garrison | Entered Factory 2619 | -6/Factory | Evolved 2 slots: Utility x2 3070 | -6/Factory | Spotted B-75 Beast 3189 | -6/Factory | Fabricated Mic. Antimatter Reactor (x2) 3397 | -6/Factory | Repaired Sml. Storage Unit 3697 | -6/Factory | Repaired Phase Cannon 3797 | -6/Factory | Lost 3 parts (2n1u) 3845 | -6/Factory | Core integrity fell below 50% 3898 | -6/Factory | Discovered new exit (range 13) 3903 | -6/Factory | Lost 9 parts (1p3n2u3w) 3903 | -6/Factory | Entered another Factory area 3903 | -5/Factory | Evolved 2 slots: Propulsion x2 3913 | -5/Factory | Discovered new exit (range 14) 3922 | -5/Factory | Identified exit to DSF 3922 | -5/Factory | Entered DSF 3922 | -5/DSF | Accompanied by 1 ally 3941 | -5/DSF | Additional patrols routed to DSF 3984 | -5/DSF | Discovered new exit (range 14) 3986 | -5/DSF | Entered Factory 3986 | -4/Factory | Evolved 2 slots: Utility x2 3999 | -4/Factory | Lost 9 parts (1p6n1u1w) 4225 | -4/Factory | Build established: Hacker-Sprinter 4261 | -4/Factory | Manually triggered Chute Trap 4261 | -4/Factory | Sucked down chute 4261 | -4/Factory | Entered Waste 4266 | -4/Waste | Spotted C-40 Crusher 4276 | -4/Waste | EMP discharged 4276 | -4/Waste | System corruption reached 10% 4277 | -4/Waste | Spotted C-40 Crusher 4278 | -4/Waste | Spotted C-40 Crusher 4280 | -4/Waste | Spotted C-40 Crusher 4281 | -4/Waste | Spotted C-40 Crusher 4282 | -4/Waste | Spotted C-40 Crusher 4284 | -4/Waste | Discovered new exit (range 12) 4287 | -4/Waste | Entered Factory 4415 | -4/Factory | Discovered new exit (range 11) 4443 | -4/Factory | Entered Upper Caves 4510 | -4/Upper Caves | Spotted B-86 Titan 4528 | -4/Upper Caves | Attracted the attention of an 0b10 checkpoint 4551 | -4/Upper Caves | Discovered new exit (range 15) 4552 | -4/Upper Caves | Encountered a Warlord checkpoint 4552 | -4/Upper Caves | Lost 4 parts (4n) 4556 | -4/Upper Caves | Learned location of 1 exit from Proximity Caves 4605 | -4/Upper Caves | Entered another Upper Caves area 4623 | -4/Upper Caves | Learned Research trap positions 4695 | -4/Upper Caves | Encountered a Warlord checkpoint 4807 | -4/Upper Caves | Discovered new exit (range 9) 4809 | -4/Upper Caves | Attracted the attention of an 0b10 outpost 4809 | -4/Upper Caves | Attracted the attention of an 0b10 checkpoint 4809 | -4/Upper Caves | Entered Zhirov 4809 | -4/Zhirov | Discovered new exit (range 3) 4818 | -4/Zhirov | Met Zhirov 4828 | -4/Zhirov | Zhirov requested help retrieving the SGEMP Prototype 4839 | -4/Zhirov | Found Alien Artifact 4839 | -4/Zhirov | Identified Integrated Dissipator 4839 | -4/Zhirov | Installed Integrated Dissipator, increased core heat dissipation (+20) 4840 | -4/Zhirov | Lost 3 parts (3n) 4844 | -4/Zhirov | Found Alien Artifact 4888 | -4/Zhirov | Entered Proximity Caves 4889 | -3/Proximity Caves | Identified exit to Research 4950 | -3/Proximity Caves | Entered Research 4950 | -3/Research | Evolved 2 slots: Propulsion x2 4951 | -3/Research | Loaded intel: 52 trap records 4965 | -3/Research | Lost 6 parts (1p4n1u) 5014 | -3/Research | Identified Transdimensional Reconstructor 5014 | -3/Research | Warped through subspace 5142 | -3/Research | System corruption reached 10% 5158 | -3/Research | Spotted B-86 Titan 5209 | -3/Research | Core integrity fell below 50% 5224 | -3/Research | Core integrity fell below 20% 5248 | -3/Research | Destroyed by B-86 Titan with Matter Neutralizer Last Messages --------------- 05222_ Slug penetrates H-77 Assassin. 05222_ Slug penetrates U-05 Engineer. 05222_ U-05 Engineer destroyed. 05222_ Penetrated by Slug. 05222_ Slug penetrates Wall. 05222_ K-01 Serf collects debris. 05224_ Exp. Flexi-carbon Leg destroyed. 05225_ Slug penetrates Wall. 05225_ Penetrated by Slug. 05225_ K-01 Serf collects debris. 05226_ H-77 Assassin knocked back. 05227_ P-80 Master resets P-80 Master, system corruption cleaned. 05227_ U-05 Engineer builds a Wall. 05228_ B-86 Titan activates siege mode. 05228_ Slug penetrates Wall. 05228_ Slug penetrates U-05 Engineer. 05228_ U-05 Engineer destroyed. 05229_ Penetrated by Slug. 05236_ Potential Refractor disabled. 05237_ System corrupted: Exp. Flexi-carbon Leg rejected. Map ----- +----------------------------------------------------+ | ?????????????????????????????????????????????????? | | ??????????????????? ??????????????????????????? | | ??????????????????? #?????????????????????????? | | ??????????????????? #?????????????????????????? | | ??????????????????? #?????????????????????????? | | ??????????????????? #?????????????????????????? | | ??????????????????# k #?????????????????????????? | | ??????????????????# #?????????????????????????? | | ??????????????????#w #?????????????????????????? | | ??????????????????# #?????????????????????????? | | ??????????????????# ########??????????????????? | | ??????????????????# A !! #??????????????????? | | ??????????????????+ !! #??????????????????? | | ??????????????????# #??????????????????? | | #####?????????????# ! #??????????????????? | | #?????????????# #?###??????????????? | | #?????????????# #? #??????????????? | | ############### ## ####???????????? | | # BB #???????????? | | # !k BB #???????????? | | ##/## =%=! #???????????? | | ! !%! % [! #???????????? | | !% !##### [! """ #???????????? | | % %| #???# """ #???????????? | | = #???# """ #???????????? | | #############/##### @ #???????????? | | ###### # ! #???????????? | | #???# # #???????????? | | !#???# """""" # p ###########?? | | #???# """""" ## #####+##### ## """ #?? | | #???# """"" ## # # ## """ #?? | | #???# ## # # ## """ [#?? | | #???# ## # # ## #?? | | ##???# """""" ## #""" # ## #?? | | ?????# """"""= # #""" # ## #?? | | ?????# """""" #T #""" / ## #?? | | ?????# ## # # ## #?? | | ?????# ## # # ## #?? | | ?????#######+#+##### ########### ######+###### | | ???????????# | | ???????????# | | ???????????# | | ???????????# | | ???????????####+######+#############+######/### | | ???????????????????????????????????????????? # | | ????????????????????????????????????????????? # | | ??????????????????????????????????????????????# | | ??????????????????????????????????????????????+ | | ??????????????????????????????????????????????# | | ??????????????????????????????????????????????# | +----------------------------------------------------+ Best States ------------- Heat Dissipation 93 Coolant Potential 50 Energy Generation 25 Energy Capacity 300 Matter Stores 300 Matter Capacity 300 Sight Range 22 Robot Scan Range 15 Terrain Scan Density 10 Power Amplification 30 Armor Coverage 225 Phase Shifting 15 Evasion (%) 66 Targeting Accuracy 13 Target Analysis 8 Recoil Reduction 1 Offensive Hacking 20 Defensive Hacking 14 Item Schematics ----------------- None Robot Schematics ------------------ None Fabricated ------------ Mic. Antimatter Reactor | x2 | -6/Factory | Preloaded Alien Tech Used ----------------- Integrated Dissipator Transdimensional Reconstructor Achievements -------------- Wheee! Challenges ------------ None Game ------ Seed CatalystLightningReactor Manual? 0 Play Time 01:05:34 Cumulative 170.4 hours Start 2024.06.05 @ 15:57:03 End 2024.06.05 @ 17:09:58 Sessions 1 Manual Loads 0 Difficulty Rogue Special Mode None Game No. 339 Rogue 339 Adventurer 0 Explorer 0 Win Type - Total 0 Types 0/0/0/0/0/0/0/0/0 Lore% 47 Gallery% 64 Achievement% 45 Wizard Run 0 Options --------- Layout 0 ASCII 0 Keyboard 1 Movement Numpad Keybinds 0 Fullscreen 2 Font 18/X11 Map View 76x50 Zoom Use 0% Tactical HUD 1 Map Filters NONE Filters NONE Steam 1 RUN: 718b50d0-df3e-4403-8ea0-a83700e75b54